{"text_format":"1","workbook":"xlsx","n_sheets":3,"sheets":["AUDIT","CCN","BILAN"],"not_rendered":{"charts":0,"images":0,"macros":1,"external_links":0,"defined_names":2,"comments":0,"pivot_tables":0},"unopened":[],"bounds":{"document_bytes":16777216,"sheet_cells":100000,"rows_first":2000,"rows_last":500,"rows_between":2000,"halvings":0,"cell_chars":16384,"cell_head_chars":4096},"cells_cut":0,"cells_raw":0,"read":"whole","date_system":"1900"}

{"sheet":"AUDIT","index":0,"n_rows":99,"n_cols":12,"rows_kept":99,"cut":false,"hidden":false,"merged":[[98,1,110,11],[9,1,9,7],[13,1,13,7],[29,1,29,7],[87,1,87,7],[46,1,46,7],[2,2,2,3],[8,2,8,11],[5,2,5,11],[6,2,6,11],[7,2,7,11]]}
[]
[]
[null,"DATE REVISION",{"$f":"TODAY()","v":"2015-07-06"}]
[]
[]
[null,"N° DOSSIER:"]
[null,"Nom de l'entreprise:"]
[null,"Adhérent Syndicat (si oui lequel?)"]
[null,"Convention Coll.:"]
[null,"CLASSEMENT - FACTURATION (à revoir avec GED)",null,null,null,null,null,null,null,"OK","KO","NC"]
[null,"Fiche navette / relevé des heures"]
[null,"Courrier 10% Abattement BTP",null,null,null,null,null,null,null,"X"]
[null,"Horaires de travail des salariés",null,null,null,null,null,null,null,"X"]
[null,"BULLETINS - contrôle de forme (mentions obligatoires en gras)",null,null,null,null,null,null,null,"OK","KO","NC"]
[null,"Element 1",null,null,null,null,null,null,null,null,"X"]
[null,"Element 2",null,null,null,null,null,null,null,"X"]
[null,"Element 3",null,null,null,null,null,null,null,null,"X"]
[null,"Element 4",null,null,null,null,null,null,null,"X"]
[null,"Element 5",null,null,null,null,null,null,null,null,"X"]
[null,"Element 6",null,null,null,null,null,null,null,"X"]
[null,"Element 7",null,null,null,null,null,null,null,null,"X"]
[null,"Element 8",null,null,null,null,null,null,null,"X"]
[null,"Element 9",null,null,null,null,null,null,null,null,"X"]
[null,"Element 10",null,null,null,null,null,null,null,"X"]
[null,"Element 11",null,null,null,null,null,null,null,null,"X"]
[null,"Element 12",null,null,null,null,null,null,null,null,"X"]
[null,"Element 13",null,null,null,null,null,null,null,"X"]
[null,"Element 14",null,null,null,null,null,null,null,"X"]
[null,"Element 15",null,null,null,null,null,null,null,"X"]
[null,"BULLETINS - contrôle de fond"]
[null,"les éléments du brut",null,null,null,null,null,null,null,"OK","KO","NC"]
[null,"Element 16",null,null,null,null,null,null,null,null,"X"]
[null,"Element 17",null,null,null,null,null,null,null,"X"]
[null,"Element 18",null,null,null,null,null,null,null,null,"X"]
[null,"Element 19",null,null,null,null,null,null,null,null,"X"]
[null,"les allègements",null,null,null,null,null,null,null,"OK","KO","NC"]
[null,"Element 20",null,null,null,null,null,null,null,null,"X"]
[null,"Element 21",null,null,null,null,null,null,null,"X"]
[null,"Element 22",null,null,null,null,null,null,null,null,"X"]
[null,"Element 23",null,null,null,null,null,null,null,"X"]
[null,"les cotisations classiques",null,null,null,null,null,null,null,"OK","KO","NC"]
[null,"Element 24",null,null,null,null,null,null,null,null,"X"]
[null,"Element 25",null,null,null,null,null,null,null,null,"X"]
[null,"Element 26",null,null,null,null,null,null,null,null,"X"]
[null,"Element 27",null,null,null,null,null,null,null,"X"]
[null,"Element 28",null,null,null,null,null,null,null,null,"X"]
[null,"Mutuelle : contrat obligatoire ou facultatif (obligation d’information. Si contrat liés à la convention, Rien à faire. Si contrat soumis volontairement, répond-il bien au contrat responsable ?)",null,null,null,null,null,null,null,null,"X"]
[null,"Element 29",null,null,null,null,null,null,null,null,"X"]
[null,"les cotisations - le spécifique",null,null,null,null,null,null,null,"OK","KO","NC"]
[null,"Aucun (mettre une croix dans OK)"]
[null,"Element 30",null,null,null,null,null,null,null,"X",null,{"$f":"IF($J$50=\"X\",\"X\",\"\")","v":""}]
[null,"Element 31",null,null,null,null,null,null,null,null,"X",{"$f":"IF($J$50=\"X\",\"X\",\"\")","v":""}]
[null,"Element 32",null,null,null,null,null,null,null,null,"X",""]
[null,"Element 33",null,null,null,null,null,null,null,"X",null,""]
[null,"Element 34",null,null,null,null,null,null,null,null,"X",""]
[null,"les traitements spécifiques",null,null,null,null,null,null,null,"OK","KO","NC"]
[null,"Aucun (mettre une croix dans OK)"]
[null,"Elements 35",null,null,null,null,null,null,null,null,"X",{"$f":"IF($J$57=\"X\",\"X\",\"\")","v":""}]
[null,"Elements 36",null,null,null,null,null,null,null,"X",null,{"$f":"IF($J$57=\"X\",\"X\",\"\")","v":""}]
[null,"Elements 37",null,null,null,null,null,null,null,null,"X",""]
[null,"Elements 38",null,null,null,null,null,null,null,null,"X",""]
[null,"Elements 39",null,null,null,null,null,null,null,"X",null,""]
[null,"Elements 40",null,null,null,null,null,null,null,null,"X",""]
[null,"Elements 41",null,null,null,null,null,null,null,null,"X",""]
[null,"les soldes de tout compte",null,null,null,null,null,null,null,"OK","KO","NC"]
[null,"Elements 42",null,null,null,null,null,null,null,null,"X"]
[null,"Elements 43",null,null,null,null,null,null,null,null,"X"]
[null,"Elements 44",null,null,null,null,null,null,null,"X"]
[null,"Elements 45",null,null,null,null,null,null,null,"X"]
[null,"Elements 46",null,null,null,null,null,null,null,"X"]
[null,"Elements 47",null,null,null,null,null,null,null,null,"X"]
[null,"les absences",null,null,null,null,null,null,null,"OK","KO","NC"]
[null,"Elements 48",null,null,null,null,null,null,null,null,"X"]
[null,"Elements 49",null,null,null,null,null,null,null,null,"X"]
[null,"Elements 50",null,null,null,null,null,null,null,null,"X"]
[null,"Elements 51",null,null,null,null,null,null,null,null,"X"]
[null,"Elements 52",null,null,null,null,null,null,null,null,"X"]
[null,"Elements 53",null,null,null,null,null,null,null,null,"X"]
[null,"les compteurs",null,null,null,null,null,null,null,"OK","KO","NC"]
[null,"Elements 54",null,null,null,null,null,null,null,null,"X"]
[null,"Elements 55",null,null,null,null,null,null,null,null,"X"]
[null,"les retenues",null,null,null,null,null,null,null,"OK","KO","NC"]
[null,"Element 56",null,null,null,null,null,null,null,null,"X"]
[null,"les aides à l'embauche",null,null,null,null,null,null,null,"OK","KO","NC"]
[null,"Elements 57",null,null,null,null,null,null,null,null,"X"]
[null,"Elements 58",null,null,null,null,null,null,null,null,"X"]
[]
[null,"JURIDIQUE"]
[null,"Contrats de travail",null,null,null,null,null,null,null,"OK","KO","NC"]
[null,"Elements 59",null,null,null,null,null,null,null,null,"X"]
[null,"Elements 60",null,null,null,null,null,null,null,null,"X"]
[null,"Les statuts",null,null,null,null,null,null,null,"OK","KO","NC"]
[null,"Elements 61",null,null,null,null,null,null,null,null,"X"]
[null,"Elements 62",null,null,null,null,null,null,null,null,"X"]
[null,"Convention Collective",null,null,null,null,null,null,null,"OK","KO","NC"]
[null,"Elements 63",null,null,null,null,null,null,null,null,"X"]
[]
[null,"Commentaires:"]
[null,"blabla bla"]

{"sheet":"CCN","index":1,"n_rows":297,"n_cols":1,"rows_kept":297,"cut":false,"hidden":true,"merged":[]}
["Droit Commun"]
["3111 abattoirs, ateliers de découpe, conditionnement de volailles"]
["3156 activités du déchet"]
["3102 activités industrielles de boulangerie et pâtisserie"]
["3023 aéraulique (installation, entretien, réparation et dépannage de matériel aéraulique, thermique et frigorifique)"]
["3142 agences de presse"]
["3061 agences de voyages et de tourisme (personnel des), tourisme, guides accompagnateurs"]
["3217 aide ou maintien à domicile (organismes d’)"]
["3321 aides familiales rurales et personnel de l’aide à domicile en milieu rural (admr) associations locales, fédérations, union nationale et comités régionaux"]
["3166 alimentation (entrepôts d’) - remplacée par la convention collective du commerce de détail et de gros à prédominance alimentaire"]
["3092 alimentation (industries alimentaires)"]
["3155 ameublement (fabrication)"]
["3114 analyses médicales (laboratoires extra-hospitaliers)"]
["3246 animation"]
["3309 assainissement et maintenance industrielle"]
["3279 assistance (société d’)"]
["3317 assistants maternels du particulier employeur"]
["3306 associations agréées de surveillance de la qualité de l’air"]
["3267 assurance (inspection d’)"]
["3265 assurances (sociétés d’)"]
["3296 audio-vidéo informatique"]
["3055 autoroutes (sociétés d’)"]
["3161 banque"]
["3002 bâtiment (etam - iac)"]
["3107 bâtiment et travaux publics"]
["3193 bâtiment - ouvriers (entreprises occupant jusqu’à dix salariés)"]
["3258 bâtiment - ouvriers (entreprises occupant plus de dix salariés)"]
["3032 bâtiment - région parisienne"]
["3051 bijouterie, joaillerie, orfèvrerie et activités qui s’y rattachent"]
["3270 biscotteries, biscuiteries, céréales prêtes à consommer ou à préparer, chocolateries, confiseries, aliments de l’enfance et de la diététique, des préparations pour entremets et desserts ménagers"]
["3074 blanchisserie, laverie, location de linge, nettoyage à sec, pressing et teinturerie"]
["3247 boissons - eaux embouteillées et boissons rafraîchissantes sans alcool et bière (activité de production)"]
["3101 boucherie, boucherie-charcuterie et boucherie hippophagique"]
["3117 boulangerie-pâtisserie"]
["3257 bourse"]
["3253 boyauderie"]
["3232 bricolage - vente au détail en libre-service"]
["3291 voir journalistes"]
["3222 voir golf"]
["3185 voir laboratoires cinématographiques et sous-titrage"]
["3026 brochure remplacée par pâtes alimentaires sèches et couscous non préparé"]
["3030 brochure remplacée par pâtes alimentaires sèches et couscous non préparé"]
["3092 brochure remplacée par pâtes alimentaires sèches et couscous non préparé"]
["3124 brochure remplacée par pâtes alimentaires sèches et couscous non préparé"]
["3179 brochure remplacée par pâtes alimentaires sèches et couscous non préparé"]
["3270 brochure remplacée par pâtes alimentaires sèches et couscous non préparé"]
["3127 brochure remplacée par pâtes alimentaires sèches et couscous non préparé"]
["3125 brochure remplacée par pâtes alimentaires sèches et couscous non préparé"]
["3018 bureaux d’études techniques, cabinets d’ingénieurs conseils, sociétés de conseils (syntec)"]
["3078 cabinets d’avocats"]
["3255 cabinets dentaires"]
["3168 cabinets médicaux (personnel)"]
["3295 cabinets ou entreprises d’expertises en automobiles"]
["3101 cadres"]
["3297 cafétérias et assimilés (chaînes)"]
["3046 caoutchouc"]
["3176 camping industries du camping, tourisme"]
["3081 carrières et matériaux (industries de) (ouvriers, employés, techniciens, agents de maîtrise, cadres)"]
["3135 cartonnage (industrie du)"]
["3167 casinos"]
["3604 caves coopératives vinicoles et leurs unions"]
["3220 centres de gestion agréés"]
["3603 centres équestres"]
["3218 centres sociaux et socioculturels"]
["3035 céramique d’art céramique de bijouterie, fabrication d’émaux cloisonnés, émaillage sur métaux précieux"]
["3319 chaînes thématiques"]
["3263 charbonnière - importation et commerce de gros"]
["3133 charcuterie (de détail)"]
["3125 charcutières (industries) - salaisons, charcuterie en gros et conserves de viandes"]
["3601 chasse et pèche (gardes-chasse et gardes-pêche particuliers)"]
["3163 chaussure, articles chaussants (industries de la)"]
["3008 chaussure (détaillants en)"]
["3120 chaussure (employés des entreprises à succursales du commerce de détail de la)"]
["3064 chaux (industries de la fabrication de la) - ouvriers - etdam - cadres"]
["3108 chimie (industries chimiques)"]
["3174 cinéma (industrie, distribution)"]
["3159 coiffure et professions connexes"]
["3004 combustibles solides, liquides, gazeux et produits pétroliers (négoce et distribution des)"]
["3021 commerce à prédominance alimentaire - remplacée par la convention collective du commerce de détail et de gros à prédominance alimentaire"]
["3244 commerce de détail des fruits et légumes, épicerie et produits laitiers lait, épicier détaillant, alimentation, crémerie, crémier, fromages, supérettes, supermarchés, commerce de boissons, alcool, spiritueux, commerce de pain, de pâtisserie, vente de produits biologiques, bio"]
["3305 commerce de détail et de gros à prédominance alimentaire"]
["3251 commerces de détail non alimentaires"]
["3044 commerces de gros"]
["3148 commerces de gros en bonneterie, lingerie, confection, mercerie, chaussures et négoces connexes"]
["3311 commerces de quincaillerie, fournitures industrielles, fers-métaux et équipements de la maison"]
["3222 commissaires-priseurs - études et organismes professionnels"]
["3224 confiserie, chocolaterie biscuiterie (détaillants et détaillants fabricants)"]
["3045 confiserie, chocolaterie, biscuiterie et alimentation fine (commerce de gros de) et négociants-distributeurs de levure"]
["3149 conseils juridiques (cabinets) remplacé par la brochure nº 3078 cabinets d'avocats (personnel salarié et avocats salariés) ]"]
["3607 conserveries coopératives et sica"]
["3248 construction-promotion"]
["3072 coopératives de consommation"]
["3616 coopératives agricoles de céréales, de meunerie, d’approvisionnement, d’alimentation du bétail et d’oléagineux"]
["3013 coopératives de consommation - gérants non salaries"]
["3612 coopératives et sociétés d'intérêt collectif agricole (sica) bétail et viande"]
["3015 cordonnerie"]
["3185 couture parisienne"]
["3058 cuirs et peaux (industrie des)"]
["3033 dentaire (négoce en fourniture)"]
["3260 désinfection – désinsectisation - dératisation"]
["3121 distributeurs conseils hors domicile (distributeurs chd)"]
["3316 distribution directe documents, journaux et objets publicitaires non adressés distribués gratuitement dans les boîtes à lettres, journaux gratuits"]
["3103 édition"]
["3181 édition de musique"]
["3076 électronique, audiovisuel, équipement ménager (commerces et services)"]
["3229 enseignement privé"]
["3320 enseignement privé (1e édition) Personnels administratifs, personnels d'éducation et documentalistes"]
["3235 enseignement privé à distance"]
["3209 enseignement technique hors contrat (personnels enseignants, chefs de travaux)"]
["3605 entraînement de chevaux de courses au trot"]
["3277 entrepreneurs de spectacles et artistes dramatiques, lyriques, chorégraphiques, marionnettistes, de variétés et musiciens en tournées"]
["3226 entreprises artistiques et culturelles"]
["3606 entreprises d’accouvage et de sélection"]
["3062 entreprises d’architecture"]
["3110 entreprises de courtage d’assurances et/ou de réassurances"]
["3188 entreprises de crédit immobilier"]
["3302 entreprises des services d’eau et d’assainissement"]
["3333 entreprises de vente à distance"]
["3617 entreprises du paysage (salariés non cadres)"]
["3610 entreprises paysagistes (personnel d’encadrement)"]
["3275 espaces de loisirs, d’attractions et culturels (ccnelac)"]
["3615 établissements d’entraînement de chevaux de courses au galop"]
["3284 établissements de suite et de réadaptation prives - sneserp"]
["3274 établissements et services prives, sanitaires, sociaux et médico-sociaux crrr - remplacée par la brochure relative à l'hospitalisation privée"]
["3198 établissements prives d’hospitalisation, de soins, de cure et de garde à but non lucratif"]
["3266 étudiants (maisons d’)"]
["3145 expertises en matière d’évaluations industrielles et commerciales"]
["3020 experts-comptables et commissaires aux comptes (cabinets)"]
["3097 exploitation cinématographique"]
["3178 exploitations frigorifiques"]
["3281 fabrication du verre à la main, semi-automatique et mixte"]
["3019 fabriques d’articles de papeterie et de bureau"]
["3236 flaconnage (commerce du)"]
["3010 Fleuristes, vente et services des animaux familiers"]
["3614 fleurs, fruits et légumes, pommes de terre (coopératives et sica)"]
["3249 formation (organismes de)"]
["3067 fourrure"]
["3233 fruits et légumes (expédition et exportation)"]
["3139 ganterie de peau"]
["3144 gardiens, concierges et employés d’immeubles"]
["3205 géomètres-experts, topographes, photogrammètres, experts-fonciers en attente d'une nouvelle convention collective nationale des cabinets ou entreprises de géomètres-experts, géomètres topographes, photogrammètres, experts-fonciers"]
["3030 glaces, sorbets, crèmes glacées (industrie)"]
["3283 golf"]
["3082 grands magasins et magasins populaires"]
["3094 guides interprètes (agences de voyage)"]
["3241 habillement (commerce de détail)"]
["3098 habillement (industries de l’)"]
["3065 habillement (maisons à succursales de vente au détail)"]
["3221 habitat - pact et arim"]
["3116 handicapes - établissements et services pour les personnes inadaptées et handicapées"]
["3292 hôtels, cafés, restaurants restaurant, tourisme, hôtel de préfecture, cafés-tabacs"]
["3191 hlm (sociétés coopératives)"]
["3240 horlogerie bijouterie"]
["3152 horlogerie - commerce de gros"]
["3192 hospitalisation - établissements médicaux pour enfants et adolescents - brochure remplacée celle relative à l'hospitalisation privée"]
["3197 hospitalisation - établissements privés sanitaires et sociaux (uhp) - brochure remplacée celle relative à l'hospitalisation privée"]
["3307 hospitalisation privée"]
["3132 hospitalisation privée à but lucratif établissements privés de santé, hôpitaux, cliniques, maisons de retraite pour personnes âgées cette brochure à été remplacée par la brochure nº 3307 relative à l'hospitalisation privée"]
["3271 hôtellerie de plein air, terrain de camping"]
["3231 hôtels de tourisme trois, quatre et quatre étoiles de luxe (région parisienne)"]
["3003 hôtels et restaurants (chaînes)"]
["3037 huissiers de justice (personnel)"]
["3090 immobilier (administrateurs de biens, sociétés immobilières, agents immobiliers)"]
["3100 importation-exportation de France métropolitaine (entreprises de commerce et de commission d’)"]
["3138 imprimeries de labeur et industries graphiques"]
["3280 industrie de la fabrication des ciments"]
["3113 industrie des panneaux à base de bois"]
["3128 industries agricoles et alimentaires"]
["3238 industries céramiques de France"]
["3127 industries de produits alimentaires élaborés"]
["3276 institutions de retraites complémentaires, institutions de prévoyance"]
["3171 instruments à écrire et industries connexes"]
["3272 jardineries, graineteries"]
["3602 jardiniers et jardiniers-gardiens de propriétés privées"]
["3130 jeux, jouets, articles de fêtes, voitures d’enfants (industrie)"]
["3053 jouets, bimbeloterie, bazars (commerce de gros)"]
["3136 journalistes"]
["3038 laboratoires cinématographiques et sous-titrage"]
["3608 lait"]
["3124 lait - industrie laitière"]
["3310 les métiers du verre tailleurs, boucheurs, décorateurs, commerce de flaconnage, verrerie à la main travaillée au chalumeau, verriers"]
["3147 machines à coudre (commerce des)"]
["3131 machines et matériel agricoles, matériels de travaux publics, bâtiment et manutention, motoculture de plaisance, jardins et espaces verts"]
["3007 maisons d’alimentation à succursales, supermarchés, hypermarchés (gérants mandataires)"]
["3318 mannequins adultes et mannequins enfants de moins de seize ans employés par les agences de mannequins"]
["3170 manutention ferroviaire"]
["3273 manutention portuaire"]
["3256 mareyeurs expéditeurs"]
["3157 maroquinerie, articles de voyage, chasse-sellerie, gainerie, bracelets en cuirs en attente de la convention collective nationale des industries de la maroquinerie, articles de voyage, chasse-sellerie, gainerie, bracelets en cuir"]
["3154 matériaux de construction (négoce des)"]
["3031 médecine du travail (personnel des services interentreprises)"]
["3109 métallurgie (accords nationaux)"]
["3025 métallurgie (ingénieurs et cadres)"]
["3126 métallurgie (région parisienne)"]
["3169 métreurs vérificateurs, économistes de la construction (cabinets)"]
["3060 meunerie"]
["3050 miroiterie, transformation et négoce du verre"]
["3304 missions locales et paio"]
["3300 mutualité"]
["3187 navigation de plaisance"]
["3293 navigation intérieure (personnel des entreprises des transports de passagers)"]
["3153 navigation intérieure (personnel sédentaire : cadres et etam)"]
["3216 navigation libre (personnel sédentaire des entreprises de)"]
["3287 négoce de bois d’œuvre et produits dérives"]
["3056 négoce de l’ameublement"]
["3286 négoce et prestations de services dans les domaines médico-techniques"]
["3234 nettoyage et manutention sur les aéroports (région parisienne)"]
["3134 notariat"]
["3184 œufs et industries en produits œufs (centres immatriculés de conditionnement, de commercialisation et de transformation)"]
["3084 optique-lunetterie de détail"]
["3014 organismes gestionnaires de foyers et services pour jeunes travailleurs"]
["3252 papeterie, fournitures de bureau, bureautique et informatique, librairie (commerce de détail)"]
["3054 papiers cartons (distribution et commerce de gros des) - ingénieurs et cadres"]
["3158 papiers-cartons (distribution et commerce de gros des) ouvriers, employés, techniciens et agents de maîtrise"]
["3242 papiers, cartons et celluloses (production des) - oedtam"]
["3250 papiers, cartons et industries connexes (transformation) oedtam"]
["3068 papiers cartons et pellicule cellulosique (transformation des - ingénieurs et cadres)"]
["3613 parcs et jardins zoologiques ouverts au public"]
["3123 parfumerie esthétique"]
["3294 pâtes alimentaires sèches et couscous non préparé"]
["3215 pâtisserie"]
["3239 peintres en lettres graphistes-décorateurs en signalisation, enseignes, publicité peinte"]
["3115 personnel des agences générales d’assurances"]
["3609 personnel des élevages aquacoles"]
["3611 personnel des organismes de contrôle laitier"]
["3301 personnel des prestataires de services dans le domaine du secteur tertiaire (IDCC 2098)"]
["3288 personnel navigant technique des exploitants d’hélicoptères"]
["3201 personnel non médical des centres de lutte contre le cancer"]
["3190 personnels des sociétés anonymes et fondations d’hlm"]
["3001 pétrole (industrie du)"]
["3262 pharmaceutique de répartition"]
["3052 pharmacie d’officine"]
["3104 pharmacie (industrie pharmaceutique)"]
["3063 pharmacie - produits à usage pharmaceutique, parapharmaceutique, vétérinaire (fabrication et commerce)"]
["3066 plasturgie"]
["3243 poissonnerie"]
["3269 pompes funèbres"]
["3164 porcelaine (industries françaises) convention collective dénoncée par lettre du 28 avril 1998 (bo cc 98-21) et dispositions reprises dans la convention collective des industries céramiques de France (brochure nº 3238)."]
["3183 ports de plaisance"]
["3290 presse d’information spécialisée - cadres, technicien, agents de maîtrise"]
["3289 presse d’information spécialisée - employés"]
["3291 presse hebdomadaire régionale"]
["3143 presse hebdomadaire régionale (cadres et employés) presse hebdomadaire parisienne (employés) presse périodique et/ou hebdomadaire (employés)"]
["3141 presse quotidienne régionale - départementale"]
["3140 presse quotidienne régionale, départementale, de province"]
["3196 prévention et sécurité"]
["3048 production cinématographique"]
["3314 production de films d’animation"]
["3011 production des papiers, cartons et celluloses (ingénieurs et cadres)"]
["3165 produits du sol, engrais et produits connexes"]
["3150 professions de la photographie"]
["3173 propreté (entreprises de)"]
["3254 prothésistes dentaires et personnels de laboratoires de prothèses dentaires"]
["3261 publicité directe (logistique)"]
["3073 publicité et assimilées (entreprises)"]
["3091 quincaillerie brochure remplacée par la brochure nº 3311 relative aux commerces de quincaillerie, fournitures industrielles, fers-métaux et équipements de la maison."]
["3160 quincaillerie brochure remplacée par la brochure nº 3311 relative aux commerces de quincaillerie, fournitures industrielles, fers-métaux et équipements de la maison."]
["3285 radiodiffusion"]
["3228 récupération (industrie et commerce)"]
["3027 reprographie"]
["3099 réseaux de transports publics urbains de voyageurs"]
["3225 restauration de collectivités"]
["3227 restauration ferroviaire"]
["3245 restauration rapide"]
["3264 rouissage et teillage du lin"]
["3180 salaries du particulier employeur (IDCC 2110)"]
["3137 sérigraphie"]
["3034 services de l’automobile (commerce et réparation de l’automobile, du cycle et du motocycle - activités connexes - contrôle technique automobile - formation des conducteurs)"]
["3219 sociétés de doublage et de postsynchronisation des œuvres audiovisuelles"]
["3059 sociétés financières"]
["3049 sport et équipements de loisirs (commerce des articles)"]
["3026 sucreries, sucreries-distilleries et raffineries de sucre"]
["9420 activité des syndicats de salariés"]
["3303 télécommunications"]
["3122 téléphériques et engins de remontées mécaniques"]
["3278 télévision (artistes-interprètes engagés pour des émissions de)"]
["3106 textile (industrie)"]
["3268 théâtres privés"]
["3298 thermalisme"]
["3042 thermiques (équipements)"]
["3047 tissus, tapis, linge de maison (commerce de gros)"]
["3175 tourisme (organismes)"]
["3151 tourisme social et familial"]
["3177 transport aérien (personnel au sol)"]
["3085 transports routiers"]
["3259 travail aérien (personnel navigant des essais et réceptions)"]
["3041 travail mécanique du bois, des scieries, du négoce et de l’importation des bois"]
["3212 travail temporaire - personnels intérimaires et permanents"]
["3005 travaux publics"]
["3086 tuiles et briques (industrie des)"]
["3079 verre (fabrication mécanique)"]
["3282 vétérinaires (cabinets et cliniques)"]
["3179 viande (industrie et commerces en gros des viandes)"]
["3029 vins, cidres, jus de fruits, sirops, spiritueux, et liqueurs de France"]
["3172 vitrail (industrie du)"]
["3022 voies ferrées d’intérêt local"]
["3075 voyageurs, représentants, placiers (accords nationaux interprofessionnels)"]

{"sheet":"BILAN","index":2,"n_rows":99,"n_cols":3,"rows_kept":99,"cut":false,"hidden":false,"merged":[[98,1,111,2],[4,0,4,1]]}
[]
["N° DOSSIER:"]
["Nom de l'entreprise:"]
["Adhérent Syndicat (si oui lequel?)"]
["Convention Coll.:"]
[]
[null,"ELEMENTS A AMELIORER","COMMENTAIRE AUDITEUR"]
[]
["CLASSEMENT - FACTURATION (à revoir avec GED)"]
[null,{"$f":"IF(AUDIT!K11=\"X\",AUDIT!B11,\"\")","v":""}]
[null,{"$f":"IF(AUDIT!K12=\"X\",AUDIT!B12,\"\")","v":""}]
[null,{"$f":"IF(AUDIT!K13=\"X\",AUDIT!B13,\"\")","v":""}]
[null,{"$f":"IF(AUDIT!K14=\"X\",AUDIT!B14,\"\")","v":""}]
["BULLETINS - contrôle de forme (mentions obligatoires en gras)"]
[null,{"$f":"IF(AUDIT!K15=\"X\",AUDIT!B15,\"\")","v":"Element 1"}]
[null,{"$f":"IF(AUDIT!K16=\"X\",AUDIT!B16,\"\")","v":""}]
[null,{"$f":"IF(AUDIT!K17=\"X\",AUDIT!B17,\"\")","v":"Element 3"}]
[null,{"$f":"IF(AUDIT!K18=\"X\",AUDIT!B18,\"\")","v":""}]
[null,{"$f":"IF(AUDIT!K19=\"X\",AUDIT!B19,\"\")","v":"Element 5"}]
[null,{"$f":"IF(AUDIT!K20=\"X\",AUDIT!B20,\"\")","v":""}]
[null,{"$f":"IF(AUDIT!K21=\"X\",AUDIT!B21,\"\")","v":"Element 7"}]
[null,{"$f":"IF(AUDIT!K22=\"X\",AUDIT!B22,\"\")","v":""}]
[null,{"$f":"IF(AUDIT!K23=\"X\",AUDIT!B23,\"\")","v":"Element 9"}]
[null,{"$f":"IF(AUDIT!K24=\"X\",AUDIT!B24,\"\")","v":""}]
[null,{"$f":"IF(AUDIT!K25=\"X\",AUDIT!B25,\"\")","v":"Element 11"}]
[null,{"$f":"IF(AUDIT!K26=\"X\",AUDIT!B26,\"\")","v":"Element 12"}]
[null,{"$f":"IF(AUDIT!K27=\"X\",AUDIT!B27,\"\")","v":""}]
[null,{"$f":"IF(AUDIT!K28=\"X\",AUDIT!B28,\"\")","v":""}]
[null,{"$f":"IF(AUDIT!K29=\"X\",AUDIT!B29,\"\")","v":""}]
["BULLETINS - contrôle de fond"]
["les éléments du brut"]
[null,{"$f":"IF(AUDIT!K32=\"X\",AUDIT!B32,\"\")","v":"Element 16"}]
[null,{"$f":"IF(AUDIT!K33=\"X\",AUDIT!B33,\"\")","v":""}]
[null,{"$f":"IF(AUDIT!K34=\"X\",AUDIT!B34,\"\")","v":"Element 18"}]
[null,{"$f":"IF(AUDIT!K35=\"X\",AUDIT!B35,\"\")","v":"Element 19"}]
[null,"les allègements"]
[null,{"$f":"IF(AUDIT!K37=\"X\",AUDIT!B37,\"\")","v":"Element 20"}]
[null,{"$f":"IF(AUDIT!K38=\"X\",AUDIT!B38,\"\")","v":""}]
[null,{"$f":"IF(AUDIT!K39=\"X\",AUDIT!B39,\"\")","v":"Element 22"}]
[null,{"$f":"IF(AUDIT!K40=\"X\",AUDIT!B40,\"\")","v":""}]
[null,"les cotisations classiques"]
[null,{"$f":"IF(AUDIT!K42=\"X\",AUDIT!B42,\"\")","v":"Element 24"}]
[null,{"$f":"IF(AUDIT!K43=\"X\",AUDIT!B43,\"\")","v":"Element 25"}]
[null,{"$f":"IF(AUDIT!K44=\"X\",AUDIT!B44,\"\")","v":"Element 26"}]
[null,{"$f":"IF(AUDIT!K45=\"X\",AUDIT!B45,\"\")","v":""}]
[null,{"$f":"IF(AUDIT!K46=\"X\",AUDIT!B46,\"\")","v":"Element 28"}]
[null,{"$f":"IF(AUDIT!K47=\"X\",AUDIT!B47,\"\")","v":"Mutuelle : contrat obligatoire ou facultatif (obligation d’information. Si contrat liés à la convention, Rien à faire. Si contrat soumis volontairement, répond-il bien au contrat responsable ?)"}]
[null,{"$f":"IF(AUDIT!K48=\"X\",AUDIT!B48,\"\")","v":"Element 29"}]
[null,"les cotisations - le spécifique"]
[null,{"$f":"IF(AUDIT!K50=\"X\",AUDIT!B50,\"\")","v":""}]
[null,{"$f":"IF(AUDIT!K51=\"X\",AUDIT!B51,\"\")","v":""}]
[null,{"$f":"IF(AUDIT!K52=\"X\",AUDIT!B52,\"\")","v":"Element 31"}]
[null,{"$f":"IF(AUDIT!K53=\"X\",AUDIT!B53,\"\")","v":"Element 32"}]
[null,{"$f":"IF(AUDIT!K54=\"X\",AUDIT!B54,\"\")","v":""}]
[null,{"$f":"IF(AUDIT!K55=\"X\",AUDIT!B55,\"\")","v":"Element 34"}]
[null,"les traitements spécifiques"]
[]
[null,{"$f":"IF(AUDIT!K58=\"X\",AUDIT!B58,\"\")","v":"Elements 35"}]
[null,{"$f":"IF(AUDIT!K59=\"X\",AUDIT!B59,\"\")","v":""}]
[null,{"$f":"IF(AUDIT!K60=\"X\",AUDIT!B60,\"\")","v":"Elements 37"}]
[null,{"$f":"IF(AUDIT!K61=\"X\",AUDIT!B61,\"\")","v":"Elements 38"}]
[null,{"$f":"IF(AUDIT!K62=\"X\",AUDIT!B62,\"\")","v":""}]
[null,{"$f":"IF(AUDIT!K63=\"X\",AUDIT!B63,\"\")","v":"Elements 40"}]
[null,{"$f":"IF(AUDIT!K64=\"X\",AUDIT!B64,\"\")","v":"Elements 41"}]
[null,"les soldes de tout compte"]
[null,{"$f":"IF(AUDIT!K66=\"X\",AUDIT!B66,\"\")","v":"Elements 42"}]
[null,{"$f":"IF(AUDIT!K67=\"X\",AUDIT!B67,\"\")","v":"Elements 43"}]
[null,{"$f":"IF(AUDIT!K68=\"X\",AUDIT!B68,\"\")","v":""}]
[null,{"$f":"IF(AUDIT!K69=\"X\",AUDIT!B69,\"\")","v":""}]
[null,{"$f":"IF(AUDIT!K70=\"X\",AUDIT!B70,\"\")","v":""}]
[null,{"$f":"IF(AUDIT!K71=\"X\",AUDIT!B71,\"\")","v":"Elements 47"}]
[null,"les absences"]
[null,{"$f":"IF(AUDIT!K73=\"X\",AUDIT!B73,\"\")","v":"Elements 48"}]
[null,{"$f":"IF(AUDIT!K74=\"X\",AUDIT!B74,\"\")","v":"Elements 49"}]
[null,{"$f":"IF(AUDIT!K75=\"X\",AUDIT!B75,\"\")","v":"Elements 50"}]
[null,{"$f":"IF(AUDIT!K76=\"X\",AUDIT!B76,\"\")","v":"Elements 51"}]
[null,{"$f":"IF(AUDIT!K77=\"X\",AUDIT!B77,\"\")","v":"Elements 52"}]
[null,{"$f":"IF(AUDIT!K78=\"X\",AUDIT!B78,\"\")","v":"Elements 53"}]
[null,"les compteurs"]
[null,{"$f":"IF(AUDIT!K80=\"X\",AUDIT!B80,\"\")","v":"Elements 54"}]
[null,{"$f":"IF(AUDIT!K81=\"X\",AUDIT!B81,\"\")","v":"Elements 55"}]
[null,"les retenues"]
[null,{"$f":"IF(AUDIT!K83=\"X\",AUDIT!B83,\"\")","v":"Element 56"}]
[null,"les aides à l'embauche"]
[null,{"$f":"IF(AUDIT!K85=\"X\",AUDIT!B85,\"\")","v":"Elements 57"}]
[null,{"$f":"IF(AUDIT!K86=\"X\",AUDIT!B86,\"\")","v":"Elements 58"}]
[null,"JURIDIQUE"]
[null,"Contrats de travail"]
[null,{"$f":"IF(AUDIT!K89=\"X\",AUDIT!B89,\"\")","v":""}]
[null,{"$f":"IF(AUDIT!K90=\"X\",AUDIT!B90,\"\")","v":"Elements 59"}]
[null,{"$f":"IF(AUDIT!K91=\"X\",AUDIT!B91,\"\")","v":"Elements 60"}]
[null,{"$f":"IF(AUDIT!K92=\"X\",AUDIT!B92,\"\")","v":""}]
[null,{"$f":"IF(AUDIT!K93=\"X\",AUDIT!B93,\"\")","v":"Elements 61"}]
[null,{"$f":"IF(AUDIT!K94=\"X\",AUDIT!B94,\"\")","v":"Elements 62"}]
[null,{"$f":"IF(AUDIT!K95=\"X\",AUDIT!B95,\"\")","v":""}]
[null,{"$f":"IF(AUDIT!K96=\"X\",AUDIT!B96,\"\")","v":"Elements 63"}]
[null,{"$f":"IF(AUDIT!K97=\"X\",AUDIT!B97,\"\")","v":""}]
[null,{"$f":"AUDIT!B98","v":"Commentaires:"}]
[null,{"$f":"AUDIT!B99","v":"blabla bla"}]